[Event "*** Titled Tuesday Blitz"]
[Site "Chess.com"]
[Date "2019.01.01"]
[Round "9"]
[White "Berardino"]
[Black "FelixBlohberger"]
[Result "1/2-1/2"]
[WhiteElo "2418"]
[BlackElo "2579"]
[TimeControl "180+2"]
[EndTime "15:09:53 PST"]
[Termination "Game drawn by repetition"]

1. e4 {[%clk 0:03:00.2]} 1... d5 {[%clk 0:02:58.5]} 2. exd5 {[%clk 0:03:00.6]}
2... Qxd5 {[%clk 0:03:00.4]} 3. Nc3 {[%clk 0:03:01.5]} 3... Qe5+ {[%clk
0:03:01.4]} 4. Be2 {[%clk 0:03:02.1]} 4... c6 {[%clk 0:03:00.6]} 5. Nf3 {[%clk
0:03:03]} 5... Qc7 {[%clk 0:03:00.4]} 6. d4 {[%clk 0:03:03.9]} 6... Nf6 {[%clk
0:03:00.1]} 7. O-O {[%clk 0:03:01.7]} 7... Bg4 {[%clk 0:02:57.1]} 8. Ne5 {[%clk
0:02:59.2]} 8... Bxe2 {[%clk 0:02:56.9]} 9. Qxe2 {[%clk 0:03:01.1]} 9... e6
{[%clk 0:02:56.8]} 10. Ne4 {[%clk 0:02:55.4]} 10... Nxe4 {[%clk 0:02:31.2]} 11.
Qxe4 {[%clk 0:02:57.3]} 11... Nd7 {[%clk 0:02:30.1]} 12. Bf4 {[%clk 0:02:51.4]}
12... Bd6 {[%clk 0:02:30.5]} 13. Bg3 {[%clk 0:02:39.3]} 13... O-O {[%clk
0:02:25.2]} 14. c4 {[%clk 0:02:28.1]} 14... Rfd8 {[%clk 0:02:04.5]} 15. Rfe1
{[%clk 0:02:18.6]} 15... Nxe5 {[%clk 0:02:04.2]} 16. dxe5 {[%clk 0:02:16.8]}
16... Bc5 {[%clk 0:02:03.8]} 17. Red1 {[%clk 0:01:44.8]} 17... Qb6 {[%clk
0:02:02.3]} 18. Qc2 {[%clk 0:01:34.5]} 18... Rd4 {[%clk 0:01:49.2]} 19. Rxd4
{[%clk 0:01:23.5]} 19... Bxd4 {[%clk 0:01:51.1]} 20. Rd1 {[%clk 0:01:19.6]}
20... Rd8 {[%clk 0:01:28.4]} 21. h4 {[%clk 0:01:12.3]} 21... Bc5 {[%clk
0:01:16.6]} 22. h5 {[%clk 0:01:08.4]} 22... h6 {[%clk 0:01:06.9]} 23. b3 {[%clk
0:01:07]} 23... Rxd1+ {[%clk 0:01:02.8]} 24. Qxd1 {[%clk 0:01:07.8]} 24... Bd4
{[%clk 0:01:04.6]} 25. Qg4 {[%clk 0:01:02.4]} 25... Qc5 {[%clk 0:01:01.4]} 26.
Qe4 {[%clk 0:01:02]} 26... a5 {[%clk 0:00:57.6]} 27. Kf1 {[%clk 0:00:52.9]}
27... a4 {[%clk 0:00:56.3]} 28. Ke2 {[%clk 0:00:35.8]} 28... Ba1 {[%clk
0:00:56.6]} 29. f4 {[%clk 0:00:16.6]} 29... Qa3 {[%clk 0:00:53.1]} 30. Qc2
{[%clk 0:00:17.4]} 30... Bd4 {[%clk 0:00:40.2]} 31. Kf3 {[%clk 0:00:14.6]} 31...
axb3 {[%clk 0:00:26.7]} 32. axb3 {[%clk 0:00:16.5]} 32... Qa1 {[%clk 0:00:28]}
33. Qd3 {[%clk 0:00:11]} 33... c5 {[%clk 0:00:29.5]} 34. Kg4 {[%clk 0:00:11.2]}
34... b6 {[%clk 0:00:29.6]} 35. Kf3 {[%clk 0:00:12.3]} 35... Qh1 {[%clk
0:00:29.7]} 36. Kg4 {[%clk 0:00:12.2]} 36... Qxg2 {[%clk 0:00:30.7]} 37. Qf3
{[%clk 0:00:13]} 37... Qc2 {[%clk 0:00:26.3]} 38. Kh3 {[%clk 0:00:12.9]} 38...
Kh7 {[%clk 0:00:24.8]} 39. Qb7 {[%clk 0:00:11.9]} 39... Qf5+ {[%clk 0:00:25]}
40. Kh4 {[%clk 0:00:11.7]} 40... f6 {[%clk 0:00:22.8]} 41. Qf7 {[%clk
0:00:11.8]} 41... fxe5 {[%clk 0:00:22]} 42. Qxf5+ {[%clk 0:00:12.9]} 42... exf5
{[%clk 0:00:23.3]} 43. fxe5 {[%clk 0:00:14.8]} 43... Kg8 {[%clk 0:00:19.4]} 44.
e6 {[%clk 0:00:15.7]} 44... Bf6+ {[%clk 0:00:19.1]} 45. Kh3 {[%clk 0:00:16]}
45... Kf8 {[%clk 0:00:16.3]} 46. Bd6+ {[%clk 0:00:16.6]} 46... Ke8 {[%clk
0:00:17.5]} 47. Bc7 {[%clk 0:00:18.1]} 47... Bd8 {[%clk 0:00:14.9]} 48. Be5
{[%clk 0:00:18.6]} 48... Bg5 {[%clk 0:00:12.3]} 49. Bc7 {[%clk 0:00:16.9]} 49...
Bd8 {[%clk 0:00:09]} 50. Be5 {[%clk 0:00:17.7]} 50... Bf6 {[%clk 0:00:07]} 51.
Bd6 {[%clk 0:00:18.1]} 51... Be7 {[%clk 0:00:06.1]} 52. Bc7 {[%clk 0:00:19]}
52... Bd8 {[%clk 0:00:06.5]} 1/2-1/2

[Event "*** Titled Tuesday Blitz"]
[Site "Chess.com"]
[Date "2019.01.01"]
[Round "9"]
[White "Atanejhad"]
[Black "MasterKroket"]
[Result "0-1"]
[WhiteElo "2246"]
[BlackElo "2451"]
[TimeControl "180+2"]
[EndTime "15:10:04 PST"]
[Termination "MasterKroket won on time"]

1. Nf3 {[%clk 0:03:01.7]} 1... Nf6 {[%clk 0:02:59.7]} 2. d4 {[%clk 0:02:52]}
2... e6 {[%clk 0:02:59.5]} 3. c4 {[%clk 0:02:52.3]} 3... b6 {[%clk 0:02:59.7]}
4. g3 {[%clk 0:02:49.5]} 4... Bb7 {[%clk 0:03:00.3]} 5. Bg2 {[%clk 0:02:50]}
5... Be7 {[%clk 0:03:01.9]} 6. O-O {[%clk 0:02:49.3]} 6... O-O {[%clk
0:03:03.1]} 7. d5 {[%clk 0:02:50.4]} 7... exd5 {[%clk 0:03:02.9]} 8. Nh4 {[%clk
0:02:50]} 8... c6 {[%clk 0:03:03]} 9. cxd5 {[%clk 0:02:50.6]} 9... Nxd5 {[%clk
0:03:04.4]} 10. Nf5 {[%clk 0:02:52.2]} 10... Nc7 {[%clk 0:03:03.4]} 11. e4
{[%clk 0:02:51.4]} 11... d5 {[%clk 0:03:04]} 12. Nc3 {[%clk 0:02:52.9]} 12...
Bf6 {[%clk 0:02:58.1]} 13. Qg4 {[%clk 0:02:46.7]} 13... g6 {[%clk 0:02:50.1]}
14. Nh6+ {[%clk 0:02:46]} 14... Kh8 {[%clk 0:02:50.1]} 15. Bf4 {[%clk
0:02:45.8]} 15... Bc8 {[%clk 0:02:45.9]} 16. Qe2 {[%clk 0:02:41.4]} 16... Nba6
{[%clk 0:02:31.4]} 17. Rfd1 {[%clk 0:02:32.9]} 17... Qe7 {[%clk 0:01:53.1]} 18.
e5 {[%clk 0:01:59.5]} 18... Bg7 {[%clk 0:01:49.9]} 19. Ng4 {[%clk 0:02:00.7]}
19... Be6 {[%clk 0:01:41.2]} 20. a3 {[%clk 0:02:00]} 20... Rfd8 {[%clk
0:01:34.1]} 21. h4 {[%clk 0:01:59.2]} 21... Rac8 {[%clk 0:01:22.7]} 22. b4
{[%clk 0:01:58.3]} 22... c5 {[%clk 0:01:22]} 23. b5 {[%clk 0:01:55.6]} 23... Nb8
{[%clk 0:01:22.3]} 24. h5 {[%clk 0:01:42.9]} 24... d4 {[%clk 0:01:18.1]} 25. Ne4
{[%clk 0:01:37.9]} 25... Nd5 {[%clk 0:01:18.6]} 26. h6 {[%clk 0:01:35.2]} 26...
Bf8 {[%clk 0:01:16]} 27. Ngf6 {[%clk 0:01:05.8]} 27... Nxf4 {[%clk 0:01:04.8]}
28. gxf4 {[%clk 0:01:05.3]} 28... Bxh6 {[%clk 0:01:02.2]} 29. Ng5 {[%clk
0:01:05.6]} 29... Bxg5 {[%clk 0:00:45]} 30. fxg5 {[%clk 0:01:07.5]} 30... Nd7
{[%clk 0:00:36.4]} 31. f4 {[%clk 0:00:48.6]} 31... Nxf6 {[%clk 0:00:36.7]} 32.
gxf6 {[%clk 0:00:50.3]} 32... Qf8 {[%clk 0:00:37.2]} 33. Kf2 {[%clk 0:00:47.3]}
33... c4 {[%clk 0:00:38]} 34. Rh1 {[%clk 0:00:47.3]} 34... d3 {[%clk 0:00:32.4]}
35. Qf3 {[%clk 0:00:45.1]} 35... Qc5+ {[%clk 0:00:21.1]} 36. Kg3 {[%clk
0:00:44.5]} 36... d2 {[%clk 0:00:18.1]} 37. Bh3 {[%clk 0:00:29.1]} 37... Rd3
{[%clk 0:00:17.3]} 38. Bxe6 {[%clk 0:00:08.5]} 38... fxe6 {[%clk 0:00:18.6]} 39.
Rh4 {[%clk 0:00:03.3]} 39... Rxf3+ {[%clk 0:00:19.2]} 40. Kxf3 {[%clk
0:00:04.4]} 40... Qd5+ {[%clk 0:00:20]} 41. Kg3 {[%clk 0:00:05.3]} 41... Qd3+
{[%clk 0:00:21]} 42. Kg4 {[%clk 0:00:06.9]} 42... Qe2+ {[%clk 0:00:21.7]} 43.
Kg5 {[%clk 0:00:07.6]} 43... Qg2+ {[%clk 0:00:21.5]} 44. Kh6 {[%clk 0:00:08.8]}
44... g5 {[%clk 0:00:15.8]} 45. fxg5 {[%clk 0:00:09.4]} 45... Qe4 {[%clk
0:00:16.9]} 46. Kh5 {[%clk 0:00:08.9]} 46... Qg6+ {[%clk 0:00:14.9]} 47. Kg4
{[%clk 0:00:10]} 47... c3 {[%clk 0:00:14.7]} 48. Rah1 {[%clk 0:00:09.8]} 48...
Rc4+ {[%clk 0:00:14.9]} 49. Kg3 {[%clk 0:00:10.2]} 49... Rxh4 {[%clk 0:00:15.7]}
50. Kxh4 {[%clk 0:00:10.6]} 50... c2 {[%clk 0:00:15.6]} 51. Rh3 {[%clk
0:00:10.9]} 51... d1=Q {[%clk 0:00:16.2]} 52. Rc3 {[%clk 0:00:11.9]} 52... c1=Q
{[%clk 0:00:14.8]} 53. Kg3 {[%clk 0:00:13.8]} 53... Qxc3+ {[%clk 0:00:15.4]} 54.
Kh2 {[%clk 0:00:14.2]} 54... Qdd2+ {[%clk 0:00:16.5]} 0-1

[Event "*** Titled Tuesday Blitz"]
[Site "Chess.com"]
[Date "2019.01.01"]
[Round "9"]
[White "abubakrtagelsir"]
[Black "Kostya_Nikologorskiy"]
[Result "0-1"]
[WhiteElo "2247"]
[BlackElo "2375"]
[TimeControl "180+2"]
[EndTime "15:10:45 PST"]
[Termination "Kostya_Nikologorskiy won by resignation"]

1. e4 {[%clk 0:03:00.4]} 1... e6 {[%clk 0:02:59.4]} 2. d4 {[%clk 0:03:01]} 2...
d5 {[%clk 0:03:00.4]} 3. Nc3 {[%clk 0:03:02]} 3... Bb4 {[%clk 0:03:00.5]} 4. e5
{[%clk 0:03:02.6]} 4... Ne7 {[%clk 0:02:57.9]} 5. a3 {[%clk 0:03:03]} 5... Bxc3+
{[%clk 0:02:58]} 6. bxc3 {[%clk 0:03:04.1]} 6... b6 {[%clk 0:02:59.3]} 7. Qg4
{[%clk 0:03:04.2]} 7... O-O {[%clk 0:02:59.3]} 8. h4 {[%clk 0:03:00.3]} 8... Ba6
{[%clk 0:02:50.7]} 9. Bxa6 {[%clk 0:02:57.2]} 9... Nxa6 {[%clk 0:02:52.6]} 10.
h5 {[%clk 0:02:56.9]} 10... f5 {[%clk 0:02:40.2]} 11. exf6 {[%clk 0:02:55.6]}
11... Rxf6 {[%clk 0:02:40.2]} 12. Bg5 {[%clk 0:02:55.6]} 12... Rf5 {[%clk
0:02:38.2]} 13. Ne2 {[%clk 0:02:51.3]} 13... Qd7 {[%clk 0:02:15.1]} 14. Ng3
{[%clk 0:02:49.3]} 14... Rf7 {[%clk 0:02:15]} 15. O-O {[%clk 0:02:36.4]} 15...
c5 {[%clk 0:01:56]} 16. Rae1 {[%clk 0:02:35.3]} 16... Nc7 {[%clk 0:01:56.3]} 17.
Re5 {[%clk 0:02:29.1]} 17... Nc6 {[%clk 0:01:49.7]} 18. Re2 {[%clk 0:02:18.2]}
18... Nb5 {[%clk 0:01:41.9]} 19. Rfe1 {[%clk 0:02:03.4]} 19... Nxc3 {[%clk
0:01:38.3]} 20. Rxe6 {[%clk 0:01:58.3]} 20... Nxd4 {[%clk 0:01:37.9]} 21. Bd2
{[%clk 0:01:36.5]} 21... Nxe6 {[%clk 0:01:31.6]} 22. Bxc3 {[%clk 0:01:30.5]}
22... Nf8 {[%clk 0:01:29]} 23. Qxd7 {[%clk 0:01:21.7]} 23... Nxd7 {[%clk
0:01:27.2]} 24. h6 {[%clk 0:01:23]} 24... d4 {[%clk 0:01:28.2]} 25. Bd2 {[%clk
0:01:22.7]} 25... gxh6 {[%clk 0:01:27.1]} 26. Bxh6 {[%clk 0:01:21.2]} 26... Nf6
{[%clk 0:01:12.6]} 27. Re6 {[%clk 0:01:11.7]} 27... Re8 {[%clk 0:01:12.5]} 28.
Rc6 {[%clk 0:01:11.5]} 28... Re1+ {[%clk 0:01:08.7]} 29. Nf1 {[%clk 0:01:11.6]}
29... Re8 {[%clk 0:01:02.4]} 30. f3 {[%clk 0:01:11.8]} 30... Nd5 {[%clk
0:01:00.9]} 31. Ng3 {[%clk 0:01:07]} 31... Rf6 {[%clk 0:01:01.4]} 32. Rxf6
{[%clk 0:01:04.9]} 32... Nxf6 {[%clk 0:01:03.3]} 33. Bg5 {[%clk 0:01:05.5]}
33... Nd5 {[%clk 0:01:03.5]} 34. Ne4 {[%clk 0:01:05.3]} 34... Kg7 {[%clk
0:01:01.5]} 35. Kf2 {[%clk 0:01:05.1]} 35... h6 {[%clk 0:01:01.6]} 36. Bd2
{[%clk 0:01:02.9]} 36... Re6 {[%clk 0:00:59.7]} 37. g4 {[%clk 0:01:01.1]} 37...
c4 {[%clk 0:01:00.7]} 38. Ng3 {[%clk 0:00:55]} 38... Ne7 {[%clk 0:00:52.7]} 39.
Ne4 {[%clk 0:00:52.9]} 39... b5 {[%clk 0:00:50.1]} 40. Kg3 {[%clk 0:00:40.9]}
40... Nd5 {[%clk 0:00:45.9]} 41. Kf2 {[%clk 0:00:39.2]} 41... Ra6 {[%clk
0:00:44.6]} 42. Bc1 {[%clk 0:00:38.8]} 42... b4 {[%clk 0:00:43.9]} 43. Nc5
{[%clk 0:00:31.3]} 43... Rxa3 {[%clk 0:00:41]} 44. Ne6+ {[%clk 0:00:27.8]} 44...
Kf6 {[%clk 0:00:35.9]} 45. Nxd4 {[%clk 0:00:27.5]} 45... Ra2 {[%clk 0:00:34.9]}
46. Kg3 {[%clk 0:00:27.6]} 46... c3 {[%clk 0:00:29.1]} 47. Bxh6 {[%clk 0:00:26]}
47... a5 {[%clk 0:00:27.3]} 48. f4 {[%clk 0:00:24.2]} 48... a4 {[%clk
0:00:28.1]} 49. g5+ {[%clk 0:00:24.5]} 49... Kf7 {[%clk 0:00:21.4]} 50. f5
{[%clk 0:00:24.2]} 50... b3 {[%clk 0:00:20.8]} 51. g6+ {[%clk 0:00:25.2]} 51...
Kf6 {[%clk 0:00:21.5]} 52. cxb3 {[%clk 0:00:24]} 52... axb3 {[%clk 0:00:23.4]}
53. Nxb3 {[%clk 0:00:25]} 53... Kxf5 {[%clk 0:00:22.3]} 54. g7 {[%clk
0:00:24.7]} 54... Nf6 {[%clk 0:00:22.5]} 55. Be3 {[%clk 0:00:18]} 55... Nh5+
{[%clk 0:00:21.6]} 56. Kf3 {[%clk 0:00:18.9]} 56... Nxg7 {[%clk 0:00:23]} 57.
Bd4 {[%clk 0:00:19]} 57... Ne6 {[%clk 0:00:23.8]} 58. Ke3 {[%clk 0:00:17.4]}
58... Ra3 {[%clk 0:00:23.7]} 59. Nc1 {[%clk 0:00:17.7]} 59... c2+ {[%clk
0:00:22.2]} 60. Kd2 {[%clk 0:00:17.4]} 60... Nxd4 {[%clk 0:00:22.9]} 0-1

[Event "*** Titled Tuesday Blitz"]
[Site "Chess.com"]
[Date "2019.01.01"]
[Round "9"]
[White "OparinGrigoriy"]
[Black "CaptainCasanova"]
[Result "0-1"]
[WhiteElo "2905"]
[BlackElo "2769"]
[TimeControl "180+2"]
[EndTime "15:10:49 PST"]
[Termination "CaptainCasanova won by checkmate"]

1. Nf3 {[%clk 0:03:01.9]} 1... Nf6 {[%clk 0:02:55.8]} 2. g3 {[%clk 0:03:03.8]}
2... g6 {[%clk 0:02:56.6]} 3. Bg2 {[%clk 0:03:05.7]} 3... Bg7 {[%clk 0:02:58.5]}
4. c4 {[%clk 0:03:07.3]} 4... O-O {[%clk 0:02:59.9]} 5. Nc3 {[%clk 0:03:08.9]}
5... d6 {[%clk 0:02:59.4]} 6. O-O {[%clk 0:03:09.7]} 6... Nc6 {[%clk 0:02:56.9]}
7. d3 {[%clk 0:03:11.1]} 7... e5 {[%clk 0:02:44.3]} 8. Rb1 {[%clk 0:03:12.2]}
8... a5 {[%clk 0:02:41.4]} 9. a3 {[%clk 0:03:13.6]} 9... Bg4 {[%clk 0:02:35.1]}
10. b4 {[%clk 0:03:14.6]} 10... axb4 {[%clk 0:02:32.7]} 11. axb4 {[%clk
0:03:16.5]} 11... Qd7 {[%clk 0:02:34.6]} 12. b5 {[%clk 0:03:17.6]} 12... Na5
{[%clk 0:02:32.8]} 13. Re1 {[%clk 0:03:17.5]} 13... Bh3 {[%clk 0:02:32.8]} 14.
Bh1 {[%clk 0:03:18.2]} 14... h6 {[%clk 0:02:31.7]} 15. Bd2 {[%clk 0:03:06.1]}
15... Rfe8 {[%clk 0:02:23.7]} 16. Qc2 {[%clk 0:03:06.4]} 16... c6 {[%clk
0:02:18.9]} 17. Ra1 {[%clk 0:03:02.7]} 17... cxb5 {[%clk 0:02:11.9]} 18. Nxb5
{[%clk 0:03:02.4]} 18... Nc6 {[%clk 0:02:13.1]} 19. Rxa8 {[%clk 0:02:58.5]}
19... Rxa8 {[%clk 0:02:15]} 20. Be3 {[%clk 0:02:59]} 20... d5 {[%clk 0:02:11.8]}
21. cxd5 {[%clk 0:02:32.5]} 21... Nxd5 {[%clk 0:02:13.7]} 22. Bc5 {[%clk
0:02:33.9]} 22... Nd8 {[%clk 0:01:53.1]} 23. Qb3 {[%clk 0:02:22]} 23... Ra5
{[%clk 0:01:50.2]} 24. Rb1 {[%clk 0:02:03.8]} 24... Ne6 {[%clk 0:01:17.7]} 25.
Be3 {[%clk 0:01:56.2]} 25... Nef4 {[%clk 0:01:18.9]} 26. Bxf4 {[%clk 0:01:34.3]}
26... Nxf4 {[%clk 0:01:19.8]} 27. Qd1 {[%clk 0:01:07.8]} 27... Rxb5 {[%clk
0:01:07.6]} 28. Rxb5 {[%clk 0:01:07.7]} 28... Nxe2+ {[%clk 0:01:06.3]} 29. Qxe2
{[%clk 0:01:07.9]} 29... Qxb5 {[%clk 0:01:08.2]} 30. Bg2 {[%clk 0:01:05.5]}
30... Be6 {[%clk 0:01:05.7]} 31. h4 {[%clk 0:01:05.3]} 31... b6 {[%clk
0:00:55.1]} 32. Nd2 {[%clk 0:01:06.3]} 32... Qc5 {[%clk 0:00:55.6]} 33. Ne4
{[%clk 0:01:05.3]} 33... Qd4 {[%clk 0:00:56.6]} 34. h5 {[%clk 0:01:03.7]} 34...
g5 {[%clk 0:00:55.9]} 35. Qc2 {[%clk 0:01:00.6]} 35... Kh7 {[%clk 0:00:55.8]}
36. Nd2 {[%clk 0:00:52.8]} 36... f5 {[%clk 0:00:54]} 37. Qc6 {[%clk 0:00:53.2]}
37... Bf7 {[%clk 0:00:54.2]} 38. Qf3 {[%clk 0:00:35.6]} 38... Be6 {[%clk
0:00:43]} 39. Qc6 {[%clk 0:00:35.7]} 39... Bf7 {[%clk 0:00:42.1]} 40. Qf3 {[%clk
0:00:35]} 40... Qd7 {[%clk 0:00:35.5]} 41. Nc4 {[%clk 0:00:30.8]} 41... g4
{[%clk 0:00:27.5]} 42. Qe2 {[%clk 0:00:28.2]} 42... Qe7 {[%clk 0:00:23.9]} 43.
Nxb6 {[%clk 0:00:24.4]} 43... Bxh5 {[%clk 0:00:23.2]} 44. Nd5 {[%clk 0:00:25.7]}
44... Qd6 {[%clk 0:00:22]} 45. Ne3 {[%clk 0:00:27]} 45... Bg6 {[%clk 0:00:22.4]}
46. Nc4 {[%clk 0:00:23.2]} 46... Qd4 {[%clk 0:00:23.2]} 47. Ne3 {[%clk
0:00:24.7]} 47... h5 {[%clk 0:00:23.3]} 48. Nc4 {[%clk 0:00:21]} 48... f4 {[%clk
0:00:22.2]} 49. Be4 {[%clk 0:00:22.4]} 49... fxg3 {[%clk 0:00:16.7]} 50. Bxg6+
{[%clk 0:00:17.2]} 50... Kxg6 {[%clk 0:00:18.6]} 51. Ne3 {[%clk 0:00:18.4]}
51... gxf2+ {[%clk 0:00:19.3]} 52. Qxf2 {[%clk 0:00:17.3]} 52... Qf4 {[%clk
0:00:20.1]} 53. Qe2 {[%clk 0:00:16.5]} 53... Bf6 {[%clk 0:00:21.4]} 54. Ng2
{[%clk 0:00:17.6]} 54... Qg5 {[%clk 0:00:22.4]} 55. Qe4+ {[%clk 0:00:18.7]}
55... Qf5 {[%clk 0:00:23.8]} 56. Qa8 {[%clk 0:00:19.6]} 56... Qe6 {[%clk
0:00:20.1]} 57. Qe4+ {[%clk 0:00:19.4]} 57... Kh6 {[%clk 0:00:21.1]} 58. Ne3
{[%clk 0:00:20.2]} 58... Kg5 {[%clk 0:00:20.5]} 59. Kg2 {[%clk 0:00:20.8]} 59...
h4 {[%clk 0:00:20.9]} 60. Nd5 {[%clk 0:00:21.6]} 60... Qc6 {[%clk 0:00:11.1]}
61. Qe3+ {[%clk 0:00:20.8]} 61... Kh5 {[%clk 0:00:10.2]} 62. Qe4 {[%clk
0:00:22.2]} 62... Qc2+ {[%clk 0:00:10.8]} 63. Kg1 {[%clk 0:00:22.8]} 63... Qc1+
{[%clk 0:00:11.3]} 64. Kh2 {[%clk 0:00:23.5]} 64... g3+ {[%clk 0:00:11.2]} 65.
Kg2 {[%clk 0:00:12.1]} 65... Qd2+ {[%clk 0:00:11.7]} 66. Kg1 {[%clk 0:00:13.2]}
66... Qf2+ {[%clk 0:00:12.6]} 67. Kh1 {[%clk 0:00:14.9]} 67... Qh2# {[%clk
0:00:14.5]} 0-1

[Event "*** Titled Tuesday Blitz"]
[Site "Chess.com"]
[Date "2019.01.01"]
[Round "9"]
[White "BlackBoarder"]
[Black "Kirill_Klukin"]
[Result "1/2-1/2"]
[WhiteElo "2577"]
[BlackElo "2606"]
[TimeControl "180+2"]
[EndTime "15:10:58 PST"]
[Termination "Game drawn - insufficient material"]

1. e4 {[%clk 0:03:01.9]} 1... c5 {[%clk 0:02:57.1]} 2. Nf3 {[%clk 0:02:59.3]}
2... Nc6 {[%clk 0:02:57.5]} 3. Bb5 {[%clk 0:02:59.6]} 3... d6 {[%clk 0:02:57.8]}
4. O-O {[%clk 0:03:00.3]} 4... Bd7 {[%clk 0:02:57.2]} 5. Re1 {[%clk 0:03:01.3]}
5... Nf6 {[%clk 0:02:58.3]} 6. c3 {[%clk 0:03:02.1]} 6... a6 {[%clk 0:02:58.9]}
7. Bf1 {[%clk 0:03:03.7]} 7... Bg4 {[%clk 0:02:59.1]} 8. h3 {[%clk 0:03:03.6]}
8... Bxf3 {[%clk 0:02:59.9]} 9. Qxf3 {[%clk 0:03:04.6]} 9... g6 {[%clk
0:03:01.8]} 10. d3 {[%clk 0:03:04.5]} 10... Bg7 {[%clk 0:03:02.9]} 11. Be3
{[%clk 0:03:05.9]} 11... Nd7 {[%clk 0:03:04.1]} 12. Nd2 {[%clk 0:03:06.7]} 12...
O-O {[%clk 0:03:04.7]} 13. Qd1 {[%clk 0:03:07.3]} 13... b5 {[%clk 0:03:05.5]}
14. Nf3 {[%clk 0:03:08.3]} 14... b4 {[%clk 0:03:02]} 15. d4 {[%clk 0:03:08.2]}
15... bxc3 {[%clk 0:03:03]} 16. bxc3 {[%clk 0:03:09.3]} 16... Qa5 {[%clk
0:03:02.5]} 17. Rc1 {[%clk 0:03:01]} 17... Rfc8 {[%clk 0:03:01.7]} 18. Bc4
{[%clk 0:02:51]} 18... Nb6 {[%clk 0:02:47.9]} 19. Bb3 {[%clk 0:02:26.1]} 19...
c4 {[%clk 0:02:47.9]} 20. Bc2 {[%clk 0:02:27.2]} 20... Qxc3 {[%clk 0:02:42.6]}
21. d5 {[%clk 0:02:16]} 21... Nb4 {[%clk 0:01:31]} 22. Bxb6 {[%clk 0:02:07]}
22... Nxa2 {[%clk 0:01:32]} 23. Rb1 {[%clk 0:01:46]} 23... Qa3 {[%clk
0:01:27.7]} 24. Bd4 {[%clk 0:01:10.5]} 24... Nc3 {[%clk 0:01:28]} 25. Bxc3
{[%clk 0:01:11]} 25... Qxc3 {[%clk 0:01:26.7]} 26. Qd2 {[%clk 0:01:05.1]} 26...
Qa3 {[%clk 0:01:23.6]} 27. Nd4 {[%clk 0:00:56.6]} 27... Rc7 {[%clk 0:00:54.9]}
28. Nc6 {[%clk 0:00:49.1]} 28... e6 {[%clk 0:00:45.8]} 29. Re3 {[%clk
0:00:38.7]} 29... Qc5 {[%clk 0:00:46.1]} 30. Qb4 {[%clk 0:00:26.8]} 30... Bd4
{[%clk 0:00:16.1]} 31. Qxc5 {[%clk 0:00:23.2]} 31... Bxc5 {[%clk 0:00:17.2]} 32.
Rc3 {[%clk 0:00:21.6]} 32... exd5 {[%clk 0:00:19.1]} 33. exd5 {[%clk 0:00:22.7]}
33... Re8 {[%clk 0:00:19.8]} 34. Kf1 {[%clk 0:00:17.9]} 34... a5 {[%clk
0:00:15.7]} 35. Rxc4 {[%clk 0:00:18.9]} 35... Ra8 {[%clk 0:00:15.3]} 36. Ra1
{[%clk 0:00:16.9]} 36... Rb7 {[%clk 0:00:13.1]} 37. Rxa5 {[%clk 0:00:12.1]}
37... Re8 {[%clk 0:00:14.5]} 38. Ra1 {[%clk 0:00:11.6]} 38... Kg7 {[%clk
0:00:15.9]} 39. Re1 {[%clk 0:00:12]} 39... Ra8 {[%clk 0:00:15.6]} 40. Rce4
{[%clk 0:00:11.5]} 40... Rb2 {[%clk 0:00:16.7]} 41. R4e2 {[%clk 0:00:12.6]}
41... Raa2 {[%clk 0:00:17.7]} 42. Bd3 {[%clk 0:00:11.2]} 42... Rd2 {[%clk
0:00:14]} 43. Bc4 {[%clk 0:00:08.8]} 43... Rac2 {[%clk 0:00:12.4]} 44. Rxd2
{[%clk 0:00:08.1]} 44... Rxd2 {[%clk 0:00:13.7]} 45. Be2 {[%clk 0:00:08.3]}
45... Rxd5 {[%clk 0:00:11.5]} 46. g3 {[%clk 0:00:06.9]} 46... Rf5 {[%clk
0:00:11.4]} 47. f4 {[%clk 0:00:07.6]} 47... h5 {[%clk 0:00:12.3]} 48. Bd3 {[%clk
0:00:07.6]} 48... Rf6 {[%clk 0:00:13]} 49. Be4 {[%clk 0:00:08.2]} 49... h4
{[%clk 0:00:13.7]} 50. Kg2 {[%clk 0:00:08.8]} 50... hxg3 {[%clk 0:00:15.1]} 51.
Kxg3 {[%clk 0:00:09.7]} 51... g5 {[%clk 0:00:13.5]} 52. f5 {[%clk 0:00:10.3]}
52... Rh6 {[%clk 0:00:13]} 53. Re2 {[%clk 0:00:07.6]} 53... Rh4 {[%clk
0:00:14.4]} 54. Nd8 {[%clk 0:00:07.8]} 54... Kf6 {[%clk 0:00:15.6]} 55. Nb7
{[%clk 0:00:08.5]} 55... Bd4 {[%clk 0:00:16.1]} 56. Na5 {[%clk 0:00:06.8]} 56...
Be5+ {[%clk 0:00:17.5]} 57. Kg2 {[%clk 0:00:07.8]} 57... g4 {[%clk 0:00:18.5]}
58. hxg4 {[%clk 0:00:08.8]} 58... Rxg4+ {[%clk 0:00:19.7]} 59. Kf3 {[%clk
0:00:10.1]} 59... Rf4+ {[%clk 0:00:21.1]} 60. Ke3 {[%clk 0:00:10]} 60... d5
{[%clk 0:00:21.9]} 61. Bxd5 {[%clk 0:00:08.9]} 61... Rxf5 {[%clk 0:00:23.2]} 62.
Nc4 {[%clk 0:00:07.2]} 62... Bb8 {[%clk 0:00:22]} 63. Ke4 {[%clk 0:00:06.7]}
63... Rg5 {[%clk 0:00:21.9]} 64. Kd3 {[%clk 0:00:06.2]} 64... Kg7 {[%clk
0:00:22.8]} 65. Rf2 {[%clk 0:00:06.6]} 65... Rg3+ {[%clk 0:00:24.2]} 66. Ke4
{[%clk 0:00:07.1]} 66... f6 {[%clk 0:00:25.3]} 67. Ne3 {[%clk 0:00:06.6]} 67...
Rxe3+ {[%clk 0:00:24.1]} 68. Kxe3 {[%clk 0:00:06.1]} 68... Ba7+ {[%clk
0:00:25.6]} 69. Kf3 {[%clk 0:00:07.5]} 69... Bxf2 {[%clk 0:00:27.3]} 70. Kxf2
{[%clk 0:00:09.4]} 70... Kg6 {[%clk 0:00:28.6]} 71. Kf3 {[%clk 0:00:10.8]} 71...
Kg5 {[%clk 0:00:30.5]} 72. Ke4 {[%clk 0:00:12]} 72... f5+ {[%clk 0:00:32.4]} 73.
Kf3 {[%clk 0:00:13.5]} 73... f4 {[%clk 0:00:34.3]} 74. Be4 {[%clk 0:00:14.9]}
74... Kf6 {[%clk 0:00:35.8]} 75. Kxf4 {[%clk 0:00:16.8]} 1/2-1/2